bitfinex/quotes_SOLUSD_20251128
["timestamp","ask_amount","ask_price","bid_price","bid_amount"]
[1764369302008,0.2,137.41,137.4,88.45846047]
[1764369306519,0.2,137.42,137.41,9.09426806]
[1764369306725,0.2,137.42,137.41,75.01551935]
[1764369307589,0.2,137.42,137.41,82.29301007]
[1764369309094,0.2,137.44,137.43,25.40313206]
[1764369309294,0.2,137.44,137.43,94.59202651]
[1764369309506,0.2,137.44,137.43,95.25202651]
[1764369310313,1e-08,137.44,137.43,41.12845815]
[1764369310612,1e-08,137.44,137.43,44.04274178]
[1764369310808,1e-08,137.44,137.43,39.74081499]
[1764369311332,1e-08,137.44,137.43,40.46845815]
[1764369311614,1e-08,137.44,137.43,41.12845815]
[1764369311821,1e-08,137.44,137.43,40.46845815]
[1764369312195,1e-08,137.44,137.43,41.12845815]
[1764369312618,1e-08,137.44,137.43,44.04252947]
[1764369313522,1e-08,137.46,137.44,9.75426806]
[1764369313721,1e-08,137.46,137.45,24.0301153]
[1764369314222,1e-08,137.46,137.45,34.2193472]
[1764369316820,1e-08,137.47,137.46,9.74426806]
[1764369317121,1e-08,137.47,137.46,75.00551935]
[1764369317503,1e-08,137.47,137.46,77.91937839]
[1764369317703,1e-08,137.48,137.47,9.74426806]
[1764369318021,1e-08,137.48,137.47,16.80551936]
[1764369318218,1e-08,137.49,137.48,9.09426806]
[1764369318405,1e-08,137.49,137.48,12.95551936]
[1764369318918,1e-08,137.49,137.48,15.86895393]
[1764369320526,1e-08,137.49,137.48,23.1427392]
[1764369321503,0.66000001,137.49,137.48,13.38721984]
[1764369322224,0.66000001,137.49,137.48,10.47378527]
[1764369323322,4.52125131,137.49,137.48,7.27378527]
[1764369323544,0.66000001,137.49,137.48,7.27378527]
[1764369324113,8.38250261,137.49,137.47,3.2]
[1764369324332,3.8612513,137.48,137.47,3.2]
[1764369324514,4.5212513,137.48,137.47,3.2]
[1764369325038,4.5212513,137.48,137.46,7.2746686]
[1764369325334,0.66,137.47,137.46,7.2746686]
[1764369326930,0.66,137.47,137.45,10.47504719]
[1764369329933,0.66,137.47,137.45,12.94367515]
[1764369330122,0.66,137.47,137.45,10.47504719]
[1764369331138,0.66,137.47,137.46,3.2]
[1764369331525,0.66,137.47,137.46,10.47484359]
[1764369332543,1e-08,137.49,137.46,31.13058052]
[1764369332734,0.66,137.48,137.46,31.13058052]
[1764369335833,0.69000001,137.49,137.47,2.46862796]
[1764369336033,0.69000001,137.49,137.48,3.2]
[1764369336540,0.69000001,137.49,137.48,10.47378527]
[1764369338140,0.69000001,137.49,137.48,71.87378527]
[1764369339342,0.69000001,137.49,137.48,74.34241323]
[1764369339728,1e-08,137.49,137.48,74.34241323]
[1764369339921,0.69000001,137.49,137.48,74.34241323]
[1764369343063,1e-08,137.49,137.48,89.48895604]
[1764369344447,1e-08,137.49,137.48,87.02032808]
[1764369345147,1e-08,137.49,137.48,105.79782004]
[1764369349251,1e-08,137.49,137.48,100.86056412]
[1764369349453,1e-08,137.49,137.48,113.20370392]
[1764369352269,1e-08,137.51,137.5,27.87176002]
[1764369352443,1e-08,137.51,137.5,92.47176001]
[1764369352642,1e-08,137.51,137.5,93.14176001]
[1764369352843,1e-08,137.51,137.5,96.05477024]
[1764369354761,1e-08,137.51,137.5,103.32749751]
[1764369357062,0.69,137.54,137.5,157.20295205]
[1764369357252,0.69,137.54,137.53,2.46862796]
[1764369357439,0.69,137.54,137.53,67.06862795]
[1764369357640,0.69,137.54,137.53,69.98121396]
[1764369358064,0.69,137.54,137.53,66.78121396]
[1764369358260,0.69,137.54,137.53,69.98121396]
[1764369358764,0.69,137.54,137.53,77.2523548]
[1764369359756,0.2,137.56,137.53,77.2523548]
[1764369359962,0.89,137.55,137.54,2.46862796]
[1764369360342,0.2,137.55,137.54,64.53862795]
[1764369360559,0.2,137.55,137.54,63.86862795]
[1764369360757,0.2,137.55,137.54,83.81588213]
[1764369360962,0.2,137.55,137.54,86.28451009]
[1764369361453,0.2,137.55,137.54,108.1268939]
[1764369361651,0.2,137.56,137.54,46.72689391]
[1764369361860,0.2,137.56,137.55,6.6229511]
[1764369362164,0.2,137.56,137.55,14.76289602]
[1764369362940,0.2,137.56,137.55,38.67664265]
[1764369363141,0.2,137.56,137.55,36.20801469]
[1764369363555,0.2,137.56,137.55,38.67664265]
[1764369364271,0.89,137.56,137.55,38.67664265]
[1764369364666,0.89,137.56,137.55,29.58237459]
[1764369364966,0.89,137.56,137.55,12.93871156]
[1764369365171,0.89,137.56,137.55,20.20561797]
[1764369366564,0.2,137.56,137.55,22.67424593]
[1764369366964,0.2,137.56,137.55,20.20561797]
[1764369367670,0.2,137.56,137.55,20.91561797]
[1764369367855,0.2,137.56,137.55,20.20561797]
[1764369368261,0.2,137.56,137.55,22.67424593]
[1764369368471,0.2,137.56,137.55,23.38424593]
[1764369368884,0.2,137.56,137.55,20.91561797]
[1764369369768,0.2,137.56,137.55,30.00988603]
[1764369369958,0.2,137.56,137.55,32.47851399]
[1764369370158,0.67,137.59,137.56,9.09426806]
[1764369370467,0.67,137.59,137.58,9.73712628]
[1764369372853,0.67,137.59,137.58,71.13712627]
[1764369375573,11.26296372,137.63,137.58,71.13712627]
[1764369375775,0.72,137.62,137.59,0.28432314]
[1764369375975,0.72,137.62,137.59,12.29426806]
[1764369376159,0.72,137.62,137.59,27.50189458]
[1764369376560,0.72,137.62,137.59,5.66862796]
[1764369376879,0.72,137.62,137.6,2.91131409]
[1764369377065,0.72,137.62,137.61,3.2]
[1764369378460,0.72,137.62,137.6,3.2]
[1764369378952,0.2,137.63,137.6,3.2]
[1764369379166,0.72,137.61,137.6,3.2]
[1764369379759,0.72,137.61,137.6,5.66862796]
[1764369381072,0.72,137.61,137.6,12.93606982]
[1764369385458,0.72,137.61,137.6,31.10467447]
[1764369385769,0.2,137.63,137.6,31.10467447]
[1764369385970,0.72,137.61,137.6,28.63604651]
[1764369386382,0.92,137.63,137.6,29.34604651]
[1764369386882,0.92,137.63,137.6,51.17931313]
[1764369387282,0.92,137.63,137.62,2.46862796]
[1764369387482,0.92,137.63,137.62,12.93501365]
[1764369390661,0.2,137.63,137.62,75.71280888]
[1764369394393,0.2,137.63,137.62,76.42280888]
[1764369394697,0.2,137.63,137.62,80.21853037]
[1764369394869,0.2,137.63,137.62,79.50853037]
[1764369396789,0.89,137.63,137.62,71.86638568]
[1764369396962,0.89,137.63,137.62,75.71280888]
[1764369400494,0.89,137.63,137.62,71.86638568]
[1764369403293,0.89,137.63,137.62,64.59999999]
[1764369404391,4.7364232,137.63,137.6,10.46729107]
[1764369404582,0.69,137.62,137.6,10.46729107]
[1764369412800,0.69,137.62,137.6,11.16729107]
[1764369413003,0.2,137.63,137.61,0.7]
[1764369413186,0.2,137.63,137.62,10.46638569]
[1764369413706,0.2,137.63,137.62,72.56638568]
[1764369414699,0.2,137.63,137.62,11.16638569]
[1764369420789,0.2,137.63,137.62,10.46638569]
[1764369421002,0.89,137.63,137.62,10.46638569]
[1764369422299,0.89,137.63,137.62,3.2]
[1764369422996,0.89,137.63,137.61,68.66642692]
[1764369423303,0.2,137.63,137.61,68.66642692]
[1764369423510,0.2,137.63,137.62,3.2]
[1764369423702,0.89,137.63,137.62,3.2]
[1764369424414,0.89,137.63,137.61,68.66642692]
[1764369424720,0.69,137.62,137.61,68.66642692]
[1764369424923,0.69,137.62,137.61,7.26642693]
[1764369425219,0.69,137.62,137.61,10.46642693]
[1764369425422,0.69,137.62,137.61,3.2]
[1764369425720,11.80280889,137.62,137.59,7.26779638]
[1764369426018,3.8464232,137.6,137.55,7.26986315]
[1764369426202,11.80280889,137.62,137.56,3.2]
[1764369426203,3.8464232,137.58,137.56,3.2]
[1764369426595,0.71,137.57,137.56,3.2]
[1764369427093,4.5564232,137.57,137.54,10.47047326]
[1764369427305,7.97915191,137.57,137.54,10.47047326]
[1764369427490,0.71,137.56,137.54,10.47047326]
[1764369429820,0.71,137.57,137.54,11.16047326]
[1764369431495,0.71,137.57,137.54,72.56047325]
[1764369434999,0.71,137.57,137.55,7.95989807]
[1764369435215,0.71,137.57,137.56,3.2]
[1764369438310,0.71,137.58,137.56,3.2]
[1764369439524,4.5564232,137.58,137.56,3.2]
[1764369440924,0.71,137.57,137.56,3.2]
[1764369441924,3.8464232,137.58,137.56,3.2]
[1764369442227,4.5564232,137.58,137.56,3.2]
[1764369442806,0.71,137.57,137.56,3.2]
[1764369443010,4.5564232,137.58,137.56,3.2]
[1764369443728,0.71,137.57,137.56,3.2]
[1764369445435,4.5564232,137.58,137.56,3.2]
[1764369446534,4.5564232,137.58,137.56,3.88]
[1764369446924,0.71,137.58,137.56,3.88]
[1764369447532,0.71,137.58,137.56,3.2]
[1764369448034,0.71,137.58,137.56,3.88]
[1764369451545,3.17454268,137.61,137.57,0.68]
[1764369451718,0.71,137.6,137.58,3.2]
[1764369452133,0.71,137.6,137.58,3.88]
[1764369452419,2.46454268,137.62,137.58,3.2]
[1764369452634,0.71,137.6,137.58,3.88]
[1764369452941,0.71,137.6,137.59,7.26797005]
[1764369453246,2.46454268,137.62,137.59,7.26797005]
[1764369453247,0.71,137.61,137.59,7.26797005]
[1764369453429,0.71,137.61,137.6,3.2]
[1764369455632,2.46454268,137.62,137.6,3.2]
[1764369455942,3.13454268,137.62,137.6,10.46743941]
[1764369456139,0.67,137.62,137.6,10.46743941]
[1764369456345,0.2,137.63,137.61,0.67]
[1764369456645,0.2,137.63,137.62,3.2]
[1764369457228,0.2,137.63,137.62,3.87]
[1764369457456,0.2,137.63,137.62,11.13638569]
[1764369459254,0.2,137.63,137.62,13.60092837]
[1764369459632,0.2,137.63,137.62,11.13638569]
[1764369460955,0.2,137.63,137.62,10.46638569]
[1764369464135,0.2,137.63,137.62,71.86638568]
[1764369464960,0.87,137.63,137.62,71.86638568]
[1764369468959,0.2,137.63,137.62,71.86638568]
[1764369470067,0.2,137.63,137.62,10.46638569]
[1764369472747,0.87,137.63,137.62,10.46638569]
[1764369475154,0.87,137.63,137.62,7.26638569]
[1764369475651,0.87,137.63,137.62,10.46638569]
[1764369476566,3.33454268,137.63,137.61,10.46691374]
[1764369476871,0.67,137.62,137.61,10.46691374]
[1764369478973,3.13454268,137.62,137.59,68.66774677]
[1764369479184,2.46454268,137.62,137.6,3.2]
[1764369479371,0.67,137.61,137.6,3.2]
[1764369480674,3.13454268,137.61,137.56,7.2695551]
[1764369480979,2.46454268,137.59,137.57,3.2]
[1764369481530,2.46454268,137.62,137.54,0.67]
[1764369481531,3.13454268,137.58,137.54,25.44621826]
[1764369481650,3.13454268,137.58,137.54,28.64621826]
[1764369481850,0.67,137.57,137.54,28.64621826]
[1764369482362,0.67,137.57,137.54,29.31621826]
[1764369488277,0.7,137.59,137.55,0.67]
[1764369488476,0.7,137.58,137.56,3.2]
[1764369491070,7.96854003,137.58,137.56,3.2]
[1764369491264,10.43308271,137.58,137.56,3.2]
[1764369491465,0.7,137.57,137.56,3.2]
[1764369491784,7.96902667,137.57,137.56,3.2]
[1764369491981,10.43356935,137.57,137.53,7.27091598]
[1764369492282,0.7,137.56,137.54,3.2]
[1764369498688,7.26902667,137.57,137.54,10.47051741]
[1764369498897,0.66,137.57,137.54,11.15051741]
[1764369499196,7.26874024,137.58,137.55,0.68]
[1764369499489,7.92874024,137.58,137.55,0.68]
[1764369500371,7.26819856,137.59,137.55,0.68]
[1764369500688,7.26819856,137.59,137.55,3.14454268]
[1764369500906,4.4576541,137.6,137.55,3.14454268]
[1764369500907,7.92668051,137.62,137.57,2.46454268]
[1764369501101,0.66,137.62,137.58,3.2]
[1764369501300,0.66,137.62,137.58,3.88]
[1764369501610,0.66,137.62,137.59,0.68]
[1764369501779,10.59056474,137.63,137.59,0.68]
[1764369502179,8.12602206,137.63,137.59,7.9477532]
[1764369502580,0.2,137.63,137.6,0.68]
[1764369502805,0.2,137.63,137.61,3.2]
[1764369503211,0.2,137.63,137.62,0.68]
[1764369504406,0.2,137.63,137.62,7.94638569]
[1764369506281,0.2,137.63,137.62,19.50519643]
[1764369507678,0.2,137.63,137.62,7.94638569]
[1764369511091,0.2,137.63,137.62,11.79288674]
[1764369511486,0.2,137.63,137.62,7.94638569]
[1764369511693,0.2,137.63,137.62,69.34638569]
[1764369512814,0.2,137.63,137.62,68.66638569]
[1764369513008,0.2,137.63,137.62,69.34638569]
[1764369513596,0.2,137.63,137.62,68.66638569]
[1764369513908,0.2,137.63,137.62,7.26638569]
[1764369514084,0.2,137.63,137.62,10.46638569]
[1764369514713,0.2,137.63,137.62,11.14638569]
[1764369515208,0.2,137.63,137.62,10.46638569]
[1764369515808,0.2,137.63,137.62,11.12638569]
[1764369517604,0.2,137.63,137.62,72.52638569]
[1764369518690,0.2,137.63,137.62,11.12638569]
[1764369518888,0.2,137.63,137.62,14.97288674]
[1764369521521,0.2,137.63,137.62,76.65720988]
[1764369521812,0.2,137.63,137.62,85.4671548]
[1764369522007,0.2,137.63,137.62,105.82251985]
[1764369524111,0.2,137.63,137.62,109.6690209]
[1764369524692,3.79529661,137.69,137.65,16.308864]
[1764369524920,0.86,137.7,137.68,3.84650105]
[1764369525104,0.86,137.7,137.69,3.2]
[1764369526603,0.2,137.7,137.69,14.3091926]
[1764369526922,0.86,137.7,137.69,10.46269155]
[1764369528130,0.86,137.7,137.69,3.2]
[1764369530294,0.86,137.7,137.69,10.46269155]
[1764369530500,0.2,137.7,137.69,10.46269155]
[1764369531928,0.86,137.7,137.69,3.2]
[1764369532222,0.86,137.7,137.65,51.12126841]
[1764369532223,0.86,137.7,137.65,16.968864]
[1764369532424,0.66,137.69,137.66,3.2]
[1764369532721,0.66,137.69,137.66,10.46427429]
[1764369532929,4.50650105,137.69,137.66,3.2]
[1764369533221,7.46223532,137.7,137.66,3.2]
[1764369533222,0.2,137.7,137.67,0.66]
[1764369533427,0.2,137.7,137.69,0.28432314]
[1764369533603,0.2,137.7,137.69,3.2]
[1764369533925,0.2,137.7,137.69,3.86]
[1764369534312,0.2,137.7,137.69,14.9691926]
[1764369535426,0.2,137.7,137.69,15.25351574]
[1764369535602,0.2,137.7,137.69,85.46346066]
[1764369535804,0.2,137.7,137.69,72.80701469]
[1764369536022,0.2,137.7,137.69,72.14701469]
[1764369536218,0.2,137.7,137.69,71.86269155]
[1764369537631,0.86,137.7,137.69,10.46269155]
[1764369545936,0.2,137.7,137.69,14.9691926]
[1764369546121,0.2,137.7,137.69,15.25351574]
[1764369547340,0.2,137.7,137.69,76.65351574]
[1764369548431,0.2,137.7,137.69,73.45351574]
[1764369548636,0.2,137.7,137.69,76.65351574]
[1764369549953,0.2,137.7,137.69,72.80701469]
[1764369550318,0.2,137.7,137.69,81.61695961]
[1764369551242,0.2,137.7,137.69,72.80701469]
[1764369551542,0.2,137.7,137.69,72.52269155]
[1764369553613,0.91,137.7,137.67,2.90919669]
[1764369553814,0.91,137.7,137.64,0.66]
[1764369553815,3.84650105,137.68,137.64,0.66]
[1764369554025,3.84650105,137.68,137.63,11.12585773]
[1764369554214,0.71,137.67,137.63,11.12585773]
[1764369554421,0.71,137.67,137.63,33.13700311]
[1764369554846,0.71,137.67,137.64,0.66]
[1764369556437,0.71,137.67,137.65,7.26480203]
[1764369556642,0.71,137.67,137.66,3.2]
[1764369557237,4.55650105,137.67,137.66,3.2]
[1764369559648,11.82024769,137.67,137.66,3.2]
[1764369559818,11.82024769,137.67,137.64,3.2]
[1764369560022,0.7,137.66,137.64,3.2]
[1764369561151,4.54650105,137.66,137.64,3.2]
[1764369561648,4.54650105,137.66,137.63,7.26563284]
[1764369561649,3.84650105,137.65,137.63,10.46563284]
[1764369561849,0.7,137.64,137.63,10.46563284]
[1764369566154,4.54650105,137.65,137.63,10.46563284]
[1764369566451,0.7,137.65,137.63,10.46563284]
[1764369574248,3.16217778,137.65,137.63,10.46563284]
[1764369576160,11.05939832,137.67,137.6,61.4]
[1764369576161,3.11217778,137.64,137.6,61.4]
[1764369576370,2.46217778,137.63,137.61,3.2]
[1764369576576,3.11217778,137.63,137.61,3.2]
[1764369576738,0.65,137.62,137.61,3.2]
[1764369577562,3.11217778,137.62,137.61,3.2]
[1764369577860,7.91638569,137.62,137.59,61.4]
[1764369578069,0.65,137.62,137.6,3.86]
[1764369579556,38.26432533,137.67,137.6,10.46704794]
[1764369579766,0.65,137.65,137.61,0.66]
[1764369580068,0.65,137.65,137.62,3.2]
[1764369580250,3.11217778,137.65,137.62,3.2]
[1764369580777,0.65,137.64,137.62,10.46617879]
[1764369580937,3.11217778,137.64,137.62,10.46617879]
[1764369582157,3.11217778,137.63,137.62,10.46617879]
[1764369583963,10.37803551,137.63,137.61,61.4]
[1764369584166,3.11217778,137.62,137.6,3.2]
[1764369584339,2.46217778,137.61,137.6,3.2]
[1764369584542,3.11217778,137.61,137.6,3.2]
[1764369584964,0.65,137.61,137.6,3.2]
[1764369585965,3.11217778,137.61,137.6,3.2]
[1764369586962,0.65,137.61,137.6,3.2]
[1764369587255,0.65,137.63,137.6,3.86]
[1764369587450,0.65,137.63,137.61,0.66]
[1764369587845,3.11217778,137.63,137.6,3.86]
[1764369588465,2.46217778,137.63,137.6,10.46706389]
[1764369588670,3.11217778,137.62,137.6,10.46706389]
[1764369588974,3.11217778,137.62,137.59,10.46797005]
[1764369589271,0.65,137.61,137.59,10.46797005]
[1764369593275,0.65,137.61,137.59,10.35487005]
[1764369595256,0.65,137.61,137.59,11.01487005]
[1764369597859,0.65,137.61,137.59,10.35487005]
[1764369598686,0.65,137.61,137.59,11.01487005]
[1764369600358,11.06221246,137.64,137.6,0.66]
[1764369600562,0.65,137.63,137.6,0.66]
[1764369600792,0.65,137.63,137.61,3.2]
[1764369601291,13.52439024,137.64,137.61,3.86]
[1764369601501,0.65,137.63,137.61,11.12684372]
[1764369601889,3.79663643,137.64,137.62,0.66]
[1764369602074,2.46217778,137.67,137.63,3.2]
[1764369602075,3.11217778,137.67,137.63,3.2]
[1764369602275,0.65,137.67,137.64,0.66]
[1764369602967,4.44540739,137.68,137.64,0.66]
[1764369603167,4.44540739,137.68,137.64,7.92480431]
[1764369603566,3.79540739,137.68,137.64,7.92480431]
[1764369603789,4.44540739,137.68,137.65,0.66]
[1764369604096,7.26269155,137.69,137.66,3.2]
[1764369604390,0.65,137.69,137.66,3.2]
[1764369604576,0.65,137.69,137.66,3.86]
[1764369605187,0.65,137.69,137.66,11.12378327]
[1764369608893,0.65,137.69,137.66,7.92378327]
[1764369609092,0.65,137.69,137.67,3.2]
[1764369609702,0.65,137.69,137.67,10.46374557]
[1764369611804,2.46217778,137.68,137.64,3.2]
[1764369612002,2.46217778,137.67,137.64,3.2]
[1764369612508,0.7,137.66,137.64,3.2]
[1764369612916,0.7,137.66,137.64,10.46528422]
[1764369614530,2.46217778,137.65,137.6,0.7]
[1764369614695,2.46217778,137.64,137.6,3.9]
[1764369615119,0.7,137.63,137.6,3.9]
[1764369615617,0.7,137.63,137.6,10.46725315]
[1764369615916,0.7,137.63,137.6,3.2]
[1764369615917,2.46217778,137.62,137.6,3.2]
[1764369616307,3.16217778,137.62,137.6,3.2]
[1764369617818,0.7,137.62,137.6,3.2]
[1764369618013,10.4286182,137.62,137.59,3.2]
[1764369618412,0.7,137.61,137.59,3.2]
[1764369619319,2.46217778,137.64,137.59,3.2]
[1764369619524,3.16217778,137.65,137.6,3.16217778]
[1764369619704,0.7,137.65,137.6,3.16217778]
[1764369620020,0.7,137.64,137.61,7.96691374]
[1764369620915,2.46217778,137.66,137.61,9.72909152]
[1764369621102,0.68,137.65,137.62,0.7]
[1764369621301,0.68,137.65,137.62,7.96622713]
[1764369621803,7.2645519,137.66,137.62,13.62840491]
[1764369622018,0.68,137.68,137.63,3.16217778]
[1764369622399,0.68,137.68,137.64,0.7]
[1764369622599,0.68,137.68,137.65,3.2]
[1764369623322,0.68,137.68,137.65,10.46466559]
[1764369628432,0.68,137.68,137.65,11.16466559]
[1764369632433,0.88,137.7,137.66,0.7]
[1764369632733,0.2,137.7,137.66,0.7]
[1764369632933,0.2,137.7,137.67,7.26374664]
[1764369632934,0.68,137.69,137.67,7.26374664]
[1764369633322,0.2,137.7,137.67,7.96374664]
[1764369633516,0.88,137.7,137.67,7.96374664]
[1764369634016,0.88,137.7,137.68,3.2]
[1764369634215,0.2,137.7,137.68,3.9]
[1764369634432,0.2,137.7,137.69,0.7]
[1764369634933,0.2,137.7,137.69,7.96269155]
[1764369636646,0.2,137.7,137.69,7.26269155]
[1764369638135,0.2,137.7,137.69,7.94269155]
[1764369643018,0.2,137.7,137.69,7.26269155]
[1764369643225,0.92,137.7,137.68,3.2]
[1764369643419,4.76460811,137.7,137.68,3.2]
[1764369643615,11.82729966,137.69,137.65,7.26429926]
[1764369643937,4.56460811,137.68,137.65,10.46429926]
[1764369644140,0.72,137.68,137.65,10.46429926]
[1764369644330,0.72,137.67,137.65,10.46429926]
[1764369647527,0.72,137.67,137.65,11.14429926]
[1764369649157,0.72,137.68,137.65,11.14429926]
[1764369649452,0.72,137.67,137.65,11.14429926]
[1764369658762,11.10729966,137.69,137.65,11.14429926]
[1764369658938,0.72,137.68,137.65,11.14429926]
[1764369659363,0.72,137.68,137.66,0.68]
[1764369659944,0.72,137.68,137.65,10.46429926]
[1764369660243,0.72,137.68,137.65,11.14429926]
[1764369674369,7.98329421,137.68,137.65,7.26429926]
[1764369674670,11.82790232,137.68,137.64,11.11526203]
[1764369674975,0.68,137.67,137.64,11.11526203]
[1764369675177,0.68,137.67,137.65,0.65]
[1764369676686,0.68,137.67,137.64,10.46526203]
[1764369676687,3.84460811,137.66,137.64,3.2]
[1764369676878,3.84460811,137.65,137.62,0.65]
[1764369677057,3.84460811,137.64,137.62,3.85]
[1764369677466,4.52460811,137.64,137.62,3.85]
[1764369677658,11.7900314,137.64,137.62,3.85]
[1764369677857,7.94542329,137.64,137.62,3.85]
[1764369678872,0.68,137.64,137.62,3.85]
[1764369679679,0.68,137.65,137.62,3.85]
[1764369679865,7.94488632,137.65,137.62,3.85]
[1764369680677,0.68,137.64,137.62,3.85]
[1764369681490,0.68,137.64,137.62,3.2]
[1764369681696,0.68,137.64,137.62,3.88]
[1764369683672,0.68,137.64,137.62,3.2]
[1764369684482,0.68,137.64,137.62,3.88]
[1764369685276,0.68,137.64,137.62,3.2]
[1764369685493,4.52460811,137.64,137.62,3.88]
[1764369685782,0.68,137.64,137.62,3.88]
[1764369687980,0.68,137.64,137.62,3.2]
[1764369690075,7.94549934,137.64,137.62,3.2]
[1764369690279,0.71,137.63,137.62,3.2]
[1764369690468,7.97549934,137.64,137.62,3.2]
[1764369690979,0.71,137.63,137.62,3.2]
[1764369693382,7.97549934,137.64,137.62,3.2]
[1764369693585,7.26549934,137.64,137.62,3.2]
[1764369693782,0.71,137.63,137.62,3.2]
[1764369694591,7.97549934,137.64,137.62,3.2]
[1764369698389,0.66,137.63,137.62,3.2]
[1764369698772,7.92549934,137.64,137.62,3.2]
[1764369700791,10.38828541,137.64,137.62,3.2]
[1764369701490,0.66,137.63,137.62,3.2]
[1764369701900,10.38828541,137.64,137.62,3.2]
[1764369702485,9.72828541,137.64,137.62,3.2]
[1764369702684,0.66,137.63,137.62,3.2]
[1764369702991,3.12278607,137.63,137.6,11.13729611]
[1764369703195,3.12278607,137.63,137.6,10.46729611]
[1764369703402,0.66,137.62,137.6,10.46729611]
[1764369704082,0.66,137.62,137.6,11.13729611]
[1764369706796,9.72828541,137.64,137.6,11.13729611]
[1764369706988,0.66,137.63,137.6,11.13729611]
[1764369709603,0.66,137.63,137.6,10.46729611]
[1764369709790,0.66,137.63,137.6,11.13729611]
[1764369710989,0.66,137.63,137.6,10.46729611]
[1764369711302,0.66,137.64,137.61,0.67]
[1764369711498,20.78957958,137.65,137.61,0.67]
[1764369711709,0.66,137.63,137.61,0.67]
[1764369713181,3.79616997,137.65,137.62,11.27273099]
[1764369713381,16.308864,137.68,137.64,2.46278607]
[1764369713382,0.66,137.68,137.64,2.46278607]
[1764369713586,4.4555185,137.69,137.64,2.46278607]
[1764369713786,4.4555185,137.69,137.65,0.67]
[1764369714002,0.66,137.68,137.65,0.67]
[1764369714223,3.7955185,137.69,137.67,2.46278607]
[1764369714406,0.2,137.7,137.68,2.46278607]
[1764369714706,0.2,137.7,137.69,5.66278607]
[1764369715209,0.2,137.7,137.69,13.59547762]
[1764369717497,0.2,137.7,137.69,11.13269155]
[1764369718582,0.2,137.7,137.69,3.2]
[1764369722113,0.2,137.7,137.69,3.87]
[1764369722910,0.2,137.7,137.69,3.2]
[1764369728315,0.2,137.7,137.69,3.87]
[1764369729519,0.2,137.7,137.69,3.2]
[1764369731405,0.56,137.71,137.69,3.2]
[1764369731911,10.28443215,137.71,137.69,3.2]
[1764369732101,7.82164608,137.71,137.69,3.2]
[1764369732298,10.28443215,137.71,137.69,3.2]
[1764369732517,2.46278607,137.7,137.67,61.4]
[1764369732699,2.46278607,137.7,137.62,0.67]
[1764369732700,2.46278607,137.68,137.62,0.67]
[1764369732908,2.46278607,137.66,137.63,3.2]
[1764369733415,2.46278607,137.64,137.6,0.67]
[1764369733618,2.46278607,137.63,137.6,3.2]
[1764369733921,3.13278607,137.64,137.6,3.2]
[1764369734106,2.46278607,137.63,137.6,3.2]
[1764369734305,3.13278607,137.63,137.6,3.2]
[1764369734507,0.67,137.62,137.6,3.2]
[1764369734912,0.67,137.62,137.6,3.87]
[1764369739630,7.26610214,137.63,137.6,3.87]
[1764369739830,0.67,137.63,137.6,3.87]
[1764369740009,7.93586962,137.63,137.6,3.87]
[1764369743731,9.72865569,137.63,137.6,3.87]
[1764369743917,10.40865569,137.63,137.6,3.87]
[1764369744125,7.94586962,137.63,137.6,3.87]
[1764369744832,7.26586962,137.63,137.6,3.87]